bitfinex/quotes_SOLUSD_20240916
["timestamp","ask_amount","ask_price","bid_price","bid_amount"]
[1726500842337,0.4396607,132.17,132.11,26.4914]
[1726500842338,7.5671,132.15,132.11,26.4914]
[1726500842930,0.4396607,132.17,132.08,18.9266]
[1726500843327,7.5678,132.14,132.09,7.57]
[1726500844042,7.5672,132.15,132.1,7.5695]
[1726500844830,7.5672,132.15,132.11,1.51173865]
[1726500845339,7.5672,132.15,132.1,7.5695]
[1726500846028,7.5667,132.16,132.11,7.5693]
[1726500846229,7.5667,132.16,132.1,18.9244]
[1726500846230,0.4396607,132.17,132.1,18.9244]
[1726500846538,7.5684,132.13,132.1,18.9244]
[1726500846840,7.5672,132.15,132.11,7.5694]
[1726500847145,7.5672,132.15,132.09,18.9252]
[1726500847316,7.5678,132.14,132.1,7.5698]
[1726500847517,7.5683,132.13,132.09,26.4956]
[1726500848041,0.4396607,132.17,132.09,26.4956]
[1726500848434,7.5687,132.13,132.09,18.9252]
[1726500848644,16.046,132.16,132.08,7.571]
[1726500848952,7.569,132.12,132.08,7.571]
[1726500849744,27.569,132.12,132.08,7.571]
[1726500850854,27.569,132.12,132.07,7.5716]
[1726500850855,7.5694,132.11,132.07,7.5716]
[1726500851136,20.0,132.12,132.05,7.5728]
[1726500851340,7.5699,132.11,132.06,7.5721]
[1726500852246,7.5701,132.1,132.06,7.5721]
[1726500852425,20.0,132.12,132.07,7.5713]
[1726500852624,27.5694,132.12,132.07,7.5713]
[1726500853045,7.5699,132.11,132.06,7.5721]
[1726500853343,7.5699,132.11,132.07,7.5717]
[1726500854333,27.5688,132.12,132.08,7.571]
[1726500854534,13.7608,132.13,132.08,7.571]
[1726500854741,6.192,132.13,132.09,18.9262]
[1726500855043,7.5694,132.12,132.07,7.5716]
[1726500855646,7.5696,132.11,132.07,7.5716]
[1726500856225,7.5701,132.1,132.06,26.5019]
[1726500856554,7.5707,132.09,132.05,7.5727]
[1726500857822,7.5707,132.09,132.04,7.5732]
[1726500858546,7.5707,132.09,132.05,7.5727]
[1726500860048,6.0087,132.08,132.0,35.2451603]
[1726500860352,6.0087,132.08,132.0,26.6968603]
[1726500860353,7.5736,132.04,132.0,26.6968603]
[1726500860531,7.5727,132.06,132.02,7.5744]
[1726500860950,7.5717,132.07,132.03,7.5739]
[1726500861733,7.5717,132.07,132.02,18.936]
[1726500861734,7.5717,132.07,132.02,26.5104]
[1726500862952,7.5724,132.06,132.02,26.5104]
[1726500863244,7.5729,132.05,132.01,7.5751]
[1726500863448,7.5734,132.04,132.0,7.7587603]
[1726500867044,7.574,132.03,132.0,0.1831603]
[1726500867266,7.5746,132.02,132.0,0.1831603]
[1726500868480,27.5741,132.03,132.0,0.1831603]
[1726500868964,21.2385,132.08,132.03,7.574]
[1726500869166,21.2385,132.08,132.01,18.937]
[1726500869471,7.5718,132.07,132.02,7.5741]
[1726500869655,21.2385,132.08,132.02,7.5741]
[1726500870963,20.0,132.07,132.02,7.5741]
[1726500871170,7.5729,132.05,132.01,26.5119]
[1726500871456,7.5724,132.06,132.02,7.5744]
[1726500871865,20.0,132.07,132.03,7.5738]
[1726500872066,27.5717,132.07,132.03,7.5738]
[1726500873468,7.5723,132.06,132.02,7.5745]
[1726500873670,20.0,132.07,132.01,18.937]
[1726500873974,7.5729,132.05,132.01,26.5117]
[1726500874144,7.5724,132.06,132.01,26.5117]
[1726500874853,7.5724,132.06,132.0,0.1831603]
[1726500874854,21.2385,132.08,132.0,0.1831603]
[1726500875161,28.8096,132.08,132.04,7.5733]
[1726500875849,21.2385,132.08,132.05,7.5728]
[1726500876864,7.5712,132.08,132.04,26.5057]
[1726500877563,21.4076,132.1,132.04,26.5057]
[1726500877764,28.9776,132.1,132.05,7.5727]
[1726500879474,7.5707,132.09,132.05,7.5727]
[1726500883253,7.5707,132.09,132.04,26.5056]
[1726500883477,7.5712,132.08,132.04,26.5056]
[1726500883881,7.5721,132.07,132.03,7.5739]
[1726500884382,7.5713,132.08,132.03,7.5739]
[1726500884585,7.5713,132.08,132.04,7.5734]
[1726500886378,7.5717,132.07,132.03,26.5085]
[1726500886957,7.5725,132.06,132.03,18.9346]
[1726500887160,7.5725,132.06,132.01,7.5749]
[1726500887359,7.573,132.05,132.01,7.5749]
[1726500889072,7.5718,132.07,132.03,7.5739]
[1726500889272,7.5707,132.09,132.05,7.5727]
[1726500889471,7.5707,132.09,132.04,26.5064]
[1726500889979,7.5712,132.08,132.04,26.5064]
[1726500890758,7.5712,132.08,132.04,26.3064]
[1726500890990,20.0,132.09,132.05,7.5723]
[1726500891671,28.978,132.1,132.06,7.5723]
[1726500891881,7.6972502,132.12,132.08,7.5711]
[1726500892086,0.1282502,132.12,132.09,23.776884]
[1726500892378,0.1282502,132.12,132.09,31.347284]
[1726500893480,0.1282502,132.12,132.09,23.776884]
[1726500893864,0.1282502,132.12,132.09,31.347284]
[1726500894089,0.0759352,132.12,132.09,31.347284]
[1726500895088,7.6451352,132.12,132.08,18.9276]
[1726500895955,0.0759352,132.12,132.09,7.5701]
[1726500896157,7.6447352,132.12,132.08,26.4986]
[1726500897877,0.0759352,132.12,132.09,23.776884]
[1726500898685,0.0759352,132.12,132.1,7.5697]
[1726500898864,0.0759352,132.12,132.09,23.776884]
[1726500899073,0.0759352,132.12,132.11,23.776884]
[1726500899260,0.0759352,132.12,132.11,31.346284]
[1726500899958,0.0759352,132.12,132.1,18.9245]
[1726500900294,0.0759352,132.12,132.07,18.9287]
[1726500900585,7.5695,132.11,132.07,18.9287]
[1726500900756,7.6449352,132.12,132.07,18.9287]
[1726500900962,0.0759352,132.12,132.08,7.571]
[1726500901381,0.0759352,132.12,132.09,7.5703]
[1726500901783,7.6448352,132.12,132.08,7.5711]
[1726500902087,7.6448352,132.12,132.07,26.5003]
[1726500902260,7.6448352,132.12,132.07,18.9287]
[1726500902261,7.5696,132.11,132.07,18.9287]
[1726500903678,7.5706,132.09,132.05,7.5726]
[1726500903869,30.2037,132.1,132.06,7.5721]
[1726500904387,22.6335,132.1,132.07,7.5713]
[1726500904577,22.6335,132.1,132.06,26.5017]
[1726500904809,22.6335,132.1,132.07,23.776884]
[1726500906195,22.6335,132.1,132.07,31.348484]
[1726500907115,30.2036,132.1,132.07,23.776884]
[1726500907983,30.2036,132.1,132.06,18.9296]
[1726500908193,7.5708,132.09,132.05,7.5727]
[1726500908495,7.5708,132.09,132.04,7.5732]
[1726500908890,7.5708,132.09,132.05,7.5728]
[1726500909284,7.5711,132.08,132.04,7.5732]
[1726500909904,7.5724,132.06,132.03,18.9341]
[1726500910113,20.0,132.09,132.01,7.5749]
[1726500910114,7.573,132.05,132.01,7.5749]
[1726500910406,41.6349352,132.1,132.02,5.98386061]
[1726500910407,21.513,132.06,132.02,5.98386061]
[1726500910623,7.574,132.03,132.0,0.1837573]
[1726500911883,7.5747,132.02,132.0,0.1837573]
[1726500912795,7.5747,132.02,131.97,26.5198]
[1726500912995,7.5762,132.0,131.96,0.2596925]
[1726500913208,7.5767,131.99,131.96,0.2596925]
[1726500913506,29.682,132.0,131.96,0.2596925]
[1726500913691,22.1061,132.0,131.96,7.8371925]
[1726500913895,7.575,132.02,131.98,7.5764]
[1726500913896,7.5746,132.02,131.98,7.5764]
[1726500914091,7.5746,132.02,131.97,7.5773]
[1726500914298,7.5755,132.01,131.96,26.7819925]
[1726500914689,22.1061,132.03,131.97,7.5771]
[1726500914690,27.5746,132.02,131.97,7.5771]
[1726500915711,27.5746,132.02,131.98,23.776884]
[1726500915889,27.5746,132.02,131.98,7.5767]
[1726500916395,20.0,132.02,131.99,23.776884]
[1726500916589,27.5748,132.02,131.99,23.776884]
[1726500916988,27.5748,132.02,131.98,23.776884]
[1726500917521,7.5764,131.99,131.96,19.2040925]
[1726500918012,7.5764,131.99,131.96,0.2596925]
[1726500918391,20.0,132.02,131.94,7.579]
[1726500918392,7.5769,131.98,131.94,7.579]
[1726500918717,20.0,132.02,131.93,18.9485]
[1726500918718,38.9371,132.02,131.93,18.9485]
[1726500918904,7.577,131.98,131.93,26.5278]
[1726500919108,7.5764,131.99,131.94,7.5792]
[1726500919493,38.9371,132.02,131.94,7.5792]
[1726500919494,7.5769,131.98,131.94,7.5792]
[1726500919713,38.9371,132.02,131.95,7.5785]
[1726500919913,7.5751,132.01,131.97,31.354184]
[1726500920117,7.5747,132.02,131.96,23.776884]
[1726500920491,7.5747,132.02,131.98,23.776884]
[1726500921508,20.0,132.01,131.98,23.776884]
[1726500922105,7.5752,132.01,131.98,23.776884]
[1726500922312,7.5759,132.0,131.98,23.776884]
[1726500923023,7.5763,131.99,131.95,7.5784]
[1726500924919,7.5758,132.0,131.96,23.776884]
[1726500925303,7.5758,132.0,131.92,0.2596925]
[1726500925304,7.5792,131.94,131.92,0.2596925]
[1726500925505,20.0,131.98,131.88,26.7980925]
[1726500925506,7.5797,131.93,131.88,26.7980925]
[1726500925709,7.5797,131.93,131.88,19.2156925]
[1726500925898,7.5797,131.93,131.89,7.582]
[1726500926405,18.9442,131.97,131.88,19.2156925]
[1726500926406,68.9442,131.97,131.88,19.2156925]
[1726500926611,20.0,131.94,131.88,19.2156925]
[1726500926801,20.0,131.94,131.88,0.2596925]
[1726500926993,7.5804,131.92,131.88,0.2596925]
[1726500927201,7.5804,131.92,131.88,7.8422925]
[1726500927404,22.3486,131.95,131.88,0.2596925]
[1726500927596,20.0,131.97,131.93,7.5793]
[1726500927826,29.1141,131.98,131.92,23.776884]
[1726500927827,29.1141,131.98,131.94,7.5791]
[1726500928014,29.1141,131.98,131.95,23.776884]
[1726500928327,7.5774,131.97,131.94,23.776884]
[1726500930030,7.5783,131.96,131.93,23.776884]
[1726500930610,7.5787,131.95,131.92,23.776884]
[1726500930930,7.5794,131.94,131.9,26.534]
[1726500931528,7.5787,131.95,131.9,26.534]
[1726500931722,7.5792,131.94,131.9,26.534]
[1726500931900,7.5798,131.93,131.88,0.2596925]
[1726500932111,38.9442,131.97,131.89,7.582]
[1726500932324,38.9442,131.97,131.9,7.5814]
[1726500932325,7.5792,131.94,131.9,7.5814]
[1726500932633,7.5798,131.93,131.89,26.5367]
[1726500932811,70.0,131.97,131.88,0.2596925]
[1726500933016,7.5811,131.91,131.88,0.2596925]
[1726500933327,21.6581,131.93,131.86,18.9584]
[1726500933328,20.0,131.92,131.86,18.9584]
[1726500934334,27.5808,131.92,131.86,18.9584]
[1726500934924,27.5808,131.92,131.87,23.776884]
[1726500935309,27.5808,131.92,131.89,23.776884]
[1726500936327,7.581,131.91,131.88,23.776884]
[1726500936908,20.0,131.92,131.84,0.2882223]
[1726500936909,7.5821,131.89,131.85,7.5843]
[1726500937347,20.0,131.92,131.86,7.5833]
[1726500937525,20.0,131.92,131.85,18.9599]
[1726500937526,7.581,131.91,131.85,18.9599]
[1726500938210,20.0,131.92,131.85,18.9599]
[1726500938411,20.0,131.92,131.86,23.776884]
[1726500938615,7.5816,131.9,131.86,23.776884]
[1726500938815,7.5816,131.9,131.86,31.360484]
[1726500939005,7.581,131.91,131.86,31.360484]
[1726500939208,7.581,131.91,131.87,7.583]
[1726500939407,7.581,131.91,131.86,23.776884]
[1726500939408,7.581,131.91,131.86,31.360384]
[1726500939616,7.5816,131.9,131.86,31.360384]
[1726500939934,7.5821,131.89,131.86,23.776884]
[1726500940634,7.5815,131.9,131.86,23.776884]
[1726500940944,38.9516,131.92,131.86,23.776884]
[1726500941113,7.5828,131.88,131.86,23.776884]
[1726500941439,7.5828,131.88,131.85,23.776884]
[1726500945118,7.5832,131.87,131.84,24.0651063]
[1726500945320,7.5827,131.88,131.84,31.6500063]
[1726500946132,7.5854,131.84,131.79,19.2562768]
[1726500946336,7.5854,131.84,131.79,26.8438768]
[1726500946710,20.0,131.85,131.79,19.2562768]
[1726500947239,38.9612,131.85,131.79,0.2877768]
[1726500947608,20.0,131.82,131.79,0.2877768]
[1726500947813,7.5845,131.85,131.79,0.2877768]
[1726500948034,20.0,131.84,131.79,0.2877768]
[1726500948344,20.0,131.84,131.8,7.5871]
[1726500948510,27.5851,131.84,131.8,7.5871]
[1726500948849,27.5845,131.85,131.8,7.5871]
[1726500949016,20.0,131.83,131.8,7.5871]
[1726500949341,27.5859,131.83,131.79,0.2877768]
[1726500950537,27.5845,131.85,131.8,7.5872]
[1726500950927,20.0,131.83,131.79,0.2877768]
[1726500951131,27.5856,131.83,131.79,0.2877768]
[1726500951320,20.0,131.83,131.79,0.2877768]
[1726500951640,20.0,131.83,131.79,24.0646608]
[1726500951946,20.0,131.85,131.79,24.0646608]
[1726500952249,20.0,131.83,131.8,7.5871]
[1726500952419,20.0,131.83,131.81,23.776884]
[1726500953041,27.5845,131.85,131.81,31.363484]
[1726500953337,27.5845,131.85,131.81,23.776884]
[1726500953839,7.585,131.84,131.81,23.776884]
[1726500954020,20.0,131.83,131.81,23.776884]
[1726500956123,27.5845,131.85,131.81,31.363084]
[1726500956448,20.0,131.85,131.82,7.586]
[1726500956618,20.0,131.86,131.83,23.776884]
[1726500956821,27.5838,131.86,131.83,23.776884]
[1726500958645,20.0,131.86,131.83,23.776884]
[1726500959643,20.0,131.86,131.8,26.554]
[1726500959644,7.5854,131.84,131.8,26.554]
[1726500960019,7.5856,131.83,131.79,7.8754768]
[1726500960244,18.9613,131.85,131.79,0.2877768]
[1726500960426,6.2101,131.83,131.79,0.2877768]
[1726500960628,6.2101,131.83,131.76,23.0081]
[1726500960629,7.5878,131.79,131.76,15.4188]
[1726500960842,7.5878,131.79,131.75,7.8777768]
[1726500961236,7.5885,131.78,131.75,0.2877768]
[1726500961436,20.0,131.82,131.75,7.8778768]
[1726500961625,27.5865,131.82,131.77,7.5888]
[1726500962036,7.5873,131.8,131.75,7.8773768]
[1726500962548,7.5873,131.8,131.76,7.5895]
[1726500962840,7.5873,131.8,131.77,23.776884]
[1726500963047,27.5866,131.82,131.77,23.776884]
[1726500963232,7.5868,131.81,131.77,23.776884]
[1726500963429,27.5873,131.8,131.75,7.8777768]
[1726500963630,27.5873,131.8,131.76,23.776884]
[1726500963631,7.5873,131.8,131.76,23.776884]
[1726500963826,7.5873,131.8,131.75,7.3777768]
[1726500965441,20.0,131.8,131.77,23.776884]
[1726500966044,20.0,131.82,131.77,23.776884]
[1726500966367,20.0,131.8,131.71,18.9806]
[1726500966524,20.0,131.8,131.72,7.5917]
[1726500966724,7.5891,131.77,131.72,7.5917]
[1726500967057,7.5885,131.78,131.74,26.5667]
[1726500967352,20.0,131.8,131.71,26.5726]
[1726500967353,7.5895,131.76,131.71,26.5726]
[1726500967538,7.5895,131.76,131.71,18.9803]
[1726500967940,20.0,131.8,131.73,7.5911]
[1726500968249,20.0,131.8,131.74,7.5905]
[1726500968478,20.0,131.78,131.74,7.5905]
[1726500968643,7.5873,131.8,131.76,31.366284]
[1726500968835,20.0,131.8,131.77,7.5889]
[1726500969034,20.0,131.8,131.78,23.776884]
[1726500969930,20.0,131.8,131.77,23.776884]
[1726500970259,27.5874,131.8,131.76,23.776884]
[1726500970446,20.0,131.8,131.76,31.366284]
[1726500971466,13.7957,131.83,131.77,18.9719]
[1726500971641,13.7957,131.83,131.73,44.4552]
[1726500971642,16.67600492,131.85,131.78,23.776884]
[1726500971836,22.9377,131.85,131.81,23.776884]
[1726500972148,15.3532,131.85,131.81,23.776884]
[1726500972336,7.5867,131.81,131.76,42.750184]
[1726500972533,15.3532,131.85,131.76,42.750184]
[1726500972534,7.5872,131.8,131.76,50.339584]
[1726500972734,7.5878,131.79,131.75,16.1083]
[1726500973033,7.5878,131.79,131.74,7.5905]
[1726500973243,7.5878,131.79,131.75,7.59]
[1726500973566,20.0,131.8,131.75,18.9741]
[1726500974260,20.0,131.81,131.75,18.9741]
[1726500974554,20.0,131.81,131.78,31.365084]
[1726500975060,20.0,131.84,131.78,23.776884]
[1726500975241,20.0,131.81,131.78,23.776884]
[1726500975946,20.0,131.84,131.78,23.776884]
[1726500976354,7.5867,131.81,131.78,23.776884]
[1726500978941,7.5861,131.82,131.78,31.365184]
[1726500979137,7.5856,131.83,131.8,23.776884]
[1726500979566,7.5861,131.82,131.8,23.776884]
[1726500979770,7.5866,131.81,131.8,23.776884]
[1726500979959,7.5866,131.81,131.77,26.5604]
[1726500980347,7.5866,131.81,131.78,23.776884]
[1726500980844,7.5873,131.8,131.78,23.776884]
[1726500981264,7.5868,131.81,131.78,23.776884]
[1726500983254,7.5856,131.83,131.79,7.5873]
[1726500983579,20.0,131.82,131.8,23.776884]
[1726500983875,20.0,131.82,131.8,31.364084]
[1726500984070,15.3532,131.85,131.8,31.364084]
[1726500984071,27.5855,131.83,131.8,23.776884]
[1726500984246,27.5851,131.84,131.8,23.776884]
[1726500984761,27.5851,131.84,131.8,31.363984]
[1726500985873,20.0,131.82,131.8,23.776884]
[1726500986065,20.0,131.84,131.8,23.776884]
[1726500986987,27.5853,131.84,131.8,23.776884]
[1726500987149,20.0,131.84,131.8,23.776884]
[1726500987354,7.5865,131.82,131.79,23.776884]
[1726500987770,7.5867,131.81,131.79,23.776884]
[1726500987977,7.5867,131.81,131.78,23.776884]
[1726500988957,20.0,131.87,131.81,23.776884]
[1726500989277,20.0,131.84,131.81,23.776884]
[1726500989977,7.5861,131.82,131.8,23.776884]
[1726500990182,38.9625,131.84,131.77,34.0268]
[1726500990469,7.5871,131.81,131.77,26.5602]
[1726500991556,7.5871,131.81,131.78,23.776884]
[1726500993281,7.586,131.83,131.8,23.776884]
[1726500993457,20.0,131.82,131.8,23.776884]
[1726500993782,30.7779,131.85,131.81,7.5866]
[1726500994072,1.66682499,131.88,131.81,7.5866]
[1726500994073,24.88812499,131.88,131.82,23.776884]
[1726500994472,7.5844,131.85,131.82,23.776884]
[1726500994683,7.584,131.86,131.82,31.362884]
[1726500995569,20.0,131.85,131.82,31.362884]
[1726500996053,27.5844,131.85,131.82,23.776884]
[1726500996573,7.585,131.84,131.82,23.776884]
[1726500997271,7.585,131.84,131.81,23.776884]
[1726500997469,20.0,131.87,131.81,23.776884]
[1726500997674,20.0,131.85,131.81,23.776884]
[1726500998059,20.0,131.87,131.81,23.776884]
[1726500998366,7.5849,131.84,131.81,23.776884]
[1726500998565,7.5845,131.85,131.81,31.363384]
[1726500998783,7.5845,131.85,131.81,32.88040561]
[1726501000786,20.0,131.87,131.83,23.776884]
[1726501001084,27.5833,131.87,131.85,23.776884]
[1726501001865,7.5838,131.86,131.84,23.776884]
[1726501002075,7.5838,131.86,131.83,23.776884]
[1726501002460,7.5844,131.85,131.83,23.776884]
[1726501003454,20.0,131.86,131.83,31.361984]
[1726501003659,20.0,131.86,131.85,23.776884]
[1726501004275,0.3446294,131.88,131.85,31.361184]
[1726501004476,20.3446294,131.88,131.85,31.361184]
[1726501004781,0.3446294,131.88,131.85,23.776884]
[1726501005563,27.5838,131.86,131.85,23.776884]
[1726501006181,7.5844,131.85,131.81,26.5519]
[1726501007085,7.5851,131.84,131.81,18.9655]
[1726501007291,7.5845,131.85,131.81,26.552]
[1726501007591,7.5845,131.85,131.82,31.362884]
[1726501008183,7.5839,131.86,131.82,31.362884]
[1726501009686,7.5844,131.85,131.82,23.776884]
[1726501012786,7.584,131.86,131.82,31.362484]
[1726501012997,27.5834,131.87,131.83,7.585]
[1726501013366,27.5834,131.87,131.84,23.776884]
[1726501014386,7.5843,131.85,131.84,23.776884]
[1726501017595,27.5843,131.85,131.84,23.776884]
[1726501018473,7.5851,131.84,131.82,23.776884]
[1726501019788,7.5855,131.83,131.81,23.776884]
[1726501020884,7.5851,131.84,131.81,23.776884]
[1726501021083,7.5845,131.85,131.81,31.363384]
[1726501021293,20.0,131.86,131.81,23.776884]
[1726501022174,7.5853,131.84,131.81,23.776884]
[1726501023997,20.0,131.83,131.81,23.776884]
[1726501026089,7.5855,131.83,131.81,23.776884]
[1726501026596,7.6638798,131.83,131.81,23.776884]
[1726501028477,20.0,131.82,131.81,23.776884]
[1726501029198,0.0783798,131.83,131.77,34.4119]
[1726501029370,7.587,131.81,131.77,42.0004]
[1726501029575,0.0783798,131.83,131.77,42.0004]
[1726501029576,7.5863,131.82,131.78,7.5882]
[1726501029790,20.0,131.82,131.79,7.5878]
[1726501030394,20.0,131.82,131.8,23.776884]
[1726501030878,20.0,131.81,131.8,23.776884]
[1726501031105,20.0,131.81,131.79,23.776884]
[1726501032905,20.0,131.82,131.8,23.776884]
[1726501033280,0.0783798,131.83,131.82,31.362984]
[1726501034682,0.0783798,131.83,131.82,23.776884]
[1726501039394,0.0783798,131.83,131.82,31.362984]
[1726501041013,0.0783798,131.83,131.82,23.776884]
[1726501043106,0.0783798,131.83,131.82,31.362984]
[1726501045889,0.0783798,131.83,131.82,46.371684]
[1726501046404,0.0783798,131.83,131.82,61.88670493]
[1726501046603,0.0783798,131.83,131.82,46.371684]
[1726501047509,0.0783798,131.83,131.82,77.41284145]
[1726501049107,0.2592398,131.86,131.85,7.5843]
[1726501049310,0.2592398,131.86,131.85,81.36300455]
[1726501052099,0.2592398,131.86,131.85,87.79100455]
[1726501052802,0.2592398,131.86,131.85,86.750084]
[1726501053313,0.2592398,131.9,131.89,7.582]
[1726501055424,0.2592398,131.9,131.89,31.358884]
[1726501058409,0.2592398,131.9,131.88,18.9558]
[1726501058714,0.2592398,131.9,131.88,26.5383]
[1726501058910,0.2592398,131.9,131.85,48.9599]
[1726501058911,7.5821,131.89,131.85,48.9599]
[1726501059217,7.5834,131.87,131.83,7.585]
[1726501059391,7.5828,131.88,131.83,7.585]
[1726501059596,7.5828,131.88,131.84,7.5848]
[1726501059917,7.5833,131.87,131.83,7.5853]
[1726501060108,7.5833,131.87,131.82,18.9643]
[1726501060295,7.5833,131.87,131.82,26.55]
[1726501060634,20.0,131.85,131.82,26.55]
[1726501060801,0.2592398,131.9,131.76,38.2050398]
[1726501060802,18.9527,131.91,131.76,38.2050398]
[1726501060803,1.32124143,131.93,131.9,14.153]
[1726501061118,0.2592398,131.98,131.97,26.521]
[1726501062016,0.2592398,131.98,131.97,50.297884]
[1726501062900,21.5829,132.08,132.02,23.776884]
[1726501062901,0.3017285,132.04,132.02,23.776884]
[1726501063100,0.3017285,132.04,132.01,23.776884]
[1726501063101,0.6175522,132.04,132.01,23.776884]
[1726501063319,0.6175522,132.04,132.01,25.29052784]
[1726501065418,20.6175522,132.04,132.01,25.29052784]
[1726501065925,0.6175522,132.04,132.01,32.86562784]
[1726501066135,0.6175522,132.04,132.01,25.29052784]
[1726501066619,0.6175522,132.04,132.01,31.351984]
[1726501066620,20.6175522,132.04,132.01,31.351984]
[1726501066918,20.6175522,132.04,132.01,23.776884]
[1726501067701,8.1910522,132.04,132.01,23.776884]
[1726501067922,8.1910522,132.04,132.01,25.29132157]
[1726501068224,8.1910522,132.04,132.01,23.776884]
[1726501068524,0.6175522,132.04,132.01,25.29040379]
[1726501068694,8.1910522,132.04,132.01,25.29040379]
[1726501068993,8.1910522,132.04,132.01,23.776884]
[1726501069819,0.6175522,132.04,132.01,23.776884]
[1726501070012,20.6175522,132.04,132.01,23.776884]
[1726501071014,20.6175522,132.04,132.03,23.776884]
[1726501072522,28.1909522,132.04,132.03,23.776884]
[1726501072734,27.574,132.03,131.98,7.5769]
[1726501072904,7.574,132.03,131.99,30.0]
[1726501073225,7.574,132.03,131.99,31.51324733]
[1726501073601,7.574,132.03,131.99,39.08944733]
[1726501073797,20.6175522,132.04,132.0,7.5752]
[1726501074011,20.6175522,132.04,132.01,1.51301806]
[1726501074433,20.6175522,132.04,132.02,23.776884]
[1726501075719,20.6175522,132.04,132.01,23.776884]
[1726501076530,20.0,132.03,132.01,23.776884]
[1726501077510,20.0,132.03,132.01,25.29168356]
[1726501078922,20.3158237,132.03,132.01,25.29168356]
[1726501079113,20.3158237,132.03,132.01,23.776884]
[1726501079919,20.3158237,132.03,132.01,25.29076518]
[1726501080231,20.3158237,132.03,132.01,23.776884]
[1726501080433,20.3158237,132.03,132.0,23.776884]
[1726501081140,7.8902237,132.03,132.0,23.776884]
[1726501081350,0.3158237,132.03,131.99,30.0]
[1726501081638,20.0,132.01,131.99,30.0]
[1726501081842,27.5755,132.01,131.99,30.0]
[1726501082006,27.8913237,132.01,131.99,30.0]
[1726501082423,0.3158237,132.01,131.96,18.9442]
[1726501082634,0.3158237,132.01,132.0,23.776884]
[1726501082836,0.3158237,132.01,132.0,7.5757]
[1726501083120,0.3158237,132.01,132.0,31.352584]
[1726501084436,0.3158237,132.01,132.0,61.352584]
[1726501085322,0.3158237,132.01,132.0,62.86723368]
[1726501087922,0.3158237,132.01,132.0,32.86723368]
[1726501088318,0.3158237,132.01,132.0,31.352584]
[1726501089848,0.3158237,132.01,131.99,7.5761]
[1726501091416,0.3158237,132.01,132.0,23.776884]
[1726501093860,0.3158237,132.01,132.0,24.28609456]
[1726501095152,0.3158237,132.01,132.0,8.08491056]
[1726501095549,0.3158237,132.01,132.0,31.86179456]
[1726501096263,0.3158237,132.01,132.0,0.50921056]
[1726501096643,0.3158237,132.01,132.0,8.08491056]
[1726501096961,0.3158237,132.01,132.0,31.86179456]
[1726501097852,0.3158237,132.01,132.0,31.352584]
[1726501104945,0.3158237,132.01,132.0,37.25235492]
[1726501105468,0.3158237,132.01,132.0,67.25235492]
[1726501106173,0.3158237,132.01,132.0,67.25209281]
[1726501106546,0.3158237,132.01,132.0,79.16679754]
[1726501108354,0.3158237,132.01,132.0,98.10609754]
[1726501108766,0.3158237,132.01,132.0,68.10609754]
[1726501108966,0.3158237,132.01,132.0,68.09463173]
[1726501109365,0.3158237,132.01,132.0,56.19125505]
[1726501109754,0.3158237,132.01,132.0,68.0822359]
[1726501110677,0.3158237,132.01,132.0,56.19125505]
[1726501110875,0.3158237,132.01,132.0,68.0822359]
[1726501111278,0.3158237,132.01,132.0,56.19125505]
[1726501111761,0.3158237,132.01,132.0,86.19125505]
[1726501113278,0.3017285,132.04,132.03,50.285884]
[1726501113466,0.3017285,132.04,132.03,56.18525505]
[1726501115059,0.3017285,132.04,132.03,86.18525505]
[1726501117456,0.3017285,132.04,132.03,50.285884]